Cogmind - Beta 11.1 @@@ ROGUE MODE // 2022.06.17 @ 16:54:05 Player: btmk16 Result: Destroyed by AD-0RF with AD-0RF's Magmablaster Performance ------------- Evolutions (1) 500 Regions Visited (6) 1200 Robots Destroyed (71) 355 Value Destroyed (1519) 1519 Prototype IDs (31) 620 Alien Tech Used (0) 0 Bonus (204) 204 TOTAL SCORE: 4398 Bonus ------- Aligned with FarCom 300 Friendly Fire -96 Cogmind --------- Core Integrity 0/400 Matter 25/300 Energy 100/100 System Corruption 0% Temperature Cool (40) Movement Core (700) Ox13 Location -8/Mines Parts ------- > --- POWER (1) -------- (None) > --- PROPULSION (3) --- (None) > --- UTILITY (3) ------ High-capacity Storage Unit Structural Scanner > --- WEAPON (2) ------- (None) > --- INVENTORY (20) --- Reinforced Fission Core Light Treads Wheel Experimental Heat Sink Large Storage Unit Gravity Neutralizer Structural Scanner Experimental Sensor Array Transport Network Coupler Experimental Targeting Computer Advanced Weapon Cycler Decoy Drone Bay (16/16) PSU Rigger YOLO Cannon Peak State ------------ > --- POWER ------------ Heavy Ion Engine > --- PROPULSION ------- Advanced Treads Aluminum Leg Carbon-fiber Leg > --- UTILITY ---------- Advanced Heat Sink High-capacity Storage Unit Structural Scanner > --- WEAPON ----------- 8R-AWN's Boregun > --- INVENTORY -------- Reinforced Fission Core Light Treads Wheel Experimental Heat Sink Large Storage Unit Gravity Neutralizer Structural Scanner Experimental Sensor Array Transport Network Coupler Experimental Targeting Computer Advanced Weapon Cycler Decoy Drone Bay PSU Rigger YOLO Cannon [Rating: 35] Favorites ----------- Power Heavy Ion Engine Engine Heavy Ion Engine Propulsion Light Treads Treads Light Treads Leg Aluminum Leg Wheel Wheel Utility Large Storage Unit Device Structural Scanner Storage Large Storage Unit Protection Light Armor Plating Weapon Autogun Energy Gun Improved Medium Laser Ballistic Gun Autogun Launcher Rocket Launcher Build | -11 -10 -10 -9 -9 -9 -8 ------- Run | Scr Mat Min Mat Min Exi Min Slots Evolved 2 | . . . 2 . . . Power . | . . . . . . . Propulsion 1 | . . . 1 . . . Utility 1 | . . . 1 . . . Weapon . | . . . . . . . Parts Attached 64 | . 11 5 16 7 19 6 Power 6 | . 2 1 2 . 1 . Engine 6 | . 2 1 2 . 1 . Core . | . . . . . . . Reactor . | . . . . . . . Propulsion 20 | . 5 . 5 2 6 2 Treads 13 | . 2 . 5 . 6 . Leg 5 | . 3 . . . . 2 Wheel 2 | . . . . 2 . . Hover . | . . . . . . . Flight . | . . . . . . . Utility 20 | . 2 . 4 5 8 1 Device 10 | . 1 . 1 2 5 1 Storage 3 | . 1 . . . 2 . Processor . | . . . . . . . Hackware . | . . . . . . . Protection 7 | . . . 3 3 1 . Artifact . | . . . . . . . Weapon 18 | . 2 4 5 . 4 3 Energy Gun 1 | . . . . . 1 . Energy Cannon . | . . . . . . . Ballistic Gun 12 | . 2 2 4 . 2 2 Ballistic Cannon . | . . . . . . . Launcher 5 | . . 2 1 . 1 1 Special Weapon . | . . . . . . . Impact Weapon . | . . . . . . . Slashing Weapon . | . . . . . . . Piercing Weapon . | . . . . . . . Special Melee Weapon . | . . . . . . . Unidentified Prototypes 6 | . . . 1 1 3 1 Parts Lost 23 | . . . 2 2 10 9 Power 2 | . . . . . 1 1 Propulsion 8 | . . . . 1 2 5 Utility 6 | . . . 1 1 3 1 Weapon 7 | . . . 1 . 4 2 Highest Loss Streak 7 | . . . 1 2 4 7 To Critical Strikes 5 | . . . . . 5 . Average Slot Usage (%) 97 | . 98 100 99 99 89 73 Engine 11 | . 14 14 10 11 11 11 Treads 25 | . 13 28 32 25 27 17 Leg 3 | . 14 . . . . 10 Wheel 1 | . . . . 6 2 . Device 11 | . 12 14 11 11 9 14 Storage 12 | . 14 14 11 11 12 11 Protection 5 | . . . 10 10 6 . Ballistic Gun 22 | . 26 27 22 22 16 5 Naked Turns . | . . . . . . . Heaviest Build 75 | 11 32 34 38 38 75 56 Greatest Support 66 | 20 40 40 60 60 66 64 Greatest Overweight (x) 13 | . . . . 3 3 13 Average Overweight (x) . | . . . . 2 1 1 Largest Inventory Capacity 20 | . 15 15 15 15 20 20 Average Capacity 14 | . 11 15 15 15 17 20 Most Carried 18 | . 14 15 15 15 18 18 Average Carried 13 | . 9 14 14 14 14 16 Final Capacity 20 | 8 15 15 15 15 20 20 Final Carried 18 | 6 14 15 15 15 18 16 Class Distribution -------------------- 51% | Mutant 48% | Scavenger-Mutant Dominant Class ---------------- Mutant | -10/Materials Mutant | -10/Mines Scavenger-Mutant | -9/Materials Scavenger-Mutant | -9/Mines Mutant | -9/Exiles Mutant | -8/Mines Resources | -11 -10 -10 -9 -9 -9 -8 ----------- Run | Scr Mat Min Mat Min Exi Min Matter Collected 1955 | 200 362 147 749 245 146 106 Remotely . | . . . . . . . Salvage Created 2309 | . 600 29 1117 272 159 132 Parts 167 | . 43 13 88 10 6 7 Haulers Intercepted 6 | . 2 . 4 . . . Recyclers Shooed 1 | . 1 . . . . . Parts Field Recycled . | . . . . . . . Retrieved Matter . | . . . . . . . Parts Self-Destructed . | . . . . . . . Prevented . | . . . . . . . Kills | -11 -10 -10 -9 -9 -9 -8 ------- Run | Scr Mat Min Mat Min Exi Min Combat Hostiles Destroyed 59 | . 13 6 24 6 7 3 Guns 45 | . 13 . 21 6 4 1 AOE 14 | . . 6 3 . 3 2 Classes Destroyed 12 | . 6 . 3 2 1 . Worker 4 | . . . 2 2 . . Builder 3 | . 1 . 2 . . . Tunneler 1 | . . . . 1 . . Hauler 6 | . 2 . 4 . . . Operator 2 | . 2 . . . . . Watcher 2 | . 2 . . . . . Swarmer 20 | . 6 6 8 . . . Grunt 24 | . 7 . 10 4 . 3 Brawler 1 | . . . . 1 . . Duelist 1 | . . . 1 . . . Sentry 5 | . . . 5 . . . Assembled 6 | . . . . . 6 . Best Kill Streak 5 | . 5 3 4 3 4 2 Combat Bots Only 5 | . 5 3 4 3 4 2 Max Kills in Single Turn 3 | . 1 2 3 1 3 1 Gunslinging 1 | . . . 1 . . . Exploded 3 | . . 2 2 . 3 1 Melee . | . . . . . . . Uniques/NPCs Destroyed 2 | . . . . 1 1 . YI-UF0 (-9/Mines) 8R-AWN (-9/Exiles) Combat | -11 -10 -10 -9 -9 -9 -8 -------- Run | Scr Mat Min Mat Min Exi Min Damage Taken 4176 | . 316 117 878 544 1504 817 Core 487 | . 43 37 39 76 114 178 Absorbed by Shields . | . . . . . . . Core Remaining (%) 84 | 100 . 68 . . . . Volleys Fired 218 | . 48 5 76 25 45 19 Largest 2 | . 2 2 2 2 2 1 Hottest 79 | . 60 56 46 46 79 33 Shots Fired 408 | . 96 8 149 50 86 19 Gun 395 | . 96 3 146 50 85 15 Cannon . | . . . . . . . Launcher 13 | . . 5 3 . 1 4 Special . | . . . . . . . Kinetic 367 | . 83 3 146 50 70 15 Thermal 15 | . . . . . 15 . Explosive 13 | . . 5 3 . 1 4 Electromagnetic 13 | . 13 . . . . . Robot Hit Streak 22 | . 10 . 22 17 6 6 Robot Miss Streak 3 | . 2 . 3 2 2 3 Penetration Max . | . . . . . . . Secondary Targets 6 | . 1 . 3 . 2 . Max Gunslinging Chain 1 | . 1 . 1 . 1 . Shots Hit Robots 265 | . 62 . 104 35 56 8 Core Hits 122 | . 28 6 44 14 23 7 Critical Kills 1 | . . . . . . 1 Critical Parts Destroyed 3 | . . . 1 . . 2 Critical Strikes 5 | . . . 1 . 1 3 Burn 1 | . . . . . 1 . Destroy 4 | . . . 1 . . 3 Melee Attacks . | . . . . . . . Impact . | . . . . . . . Slashing . | . . . . . . . Piercing . | . . . . . . . Sneak Attacks . | . . . . . . . Combat Hostiles . | . . . . . . . Follow-up Attacks . | . . . . . . . Damage Inflicted 4961 | . 880 294 1904 532 993 358 Guns 4060 | . 876 . 1631 532 885 136 Cannons . | . . . . . . . Explosions 892 | . . 294 273 . 108 217 Melee . | . . . . . . . Ramming 9 | . 4 . . . . 5 Kinetic 3809 | . 760 . 1631 532 750 136 Thermal 135 | . . . . . 135 . Explosive 892 | . . 294 273 . 108 217 Electromagnetic 116 | . 116 . . . . . Impact . | . . . . . . . Slashing . | . . . . . . . Piercing . | . . . . . . . Highest Corruption . | . . . . . . . Average Corruption . | . . . . . . . Corruption Purged . | . . . . . . . Corruption Blocked . | . . . . . . . Overload Shots . | . . . . . . . Overflow Damage 51 | . . 5 10 . . 36 Projectiles . | . . . . . . . Explosions 51 | . . 5 10 . . 36 Melee . | . . . . . . . Knockbacks . | . . . . . . . Impact . | . . . . . . . Kinetic . | . . . . . . . Secondary . | . . . . . . . Self-Inflicted Damage 127 | . . 39 32 . 17 39 Shots 6 | . . 2 1 . 1 2 Rammed 3 | . . . . . . 3 Targets Rammed 5 | . 2 . . . . 3 Kicked 2 | . 2 . . . . . Crushed . | . . . . . . . Highest Temperature 180 | . 58 . 96 22 180 56 Average Temperature 28 | . 21 . 22 8 49 22 Received Heat Transfer 1366 | . 72 . 300 45 . 949 Siege Activations . | . . . . . . . Robots Corrupted . | . . . . . . . Combat Hostiles . | . . . . . . . Parts Fried . | . . . . . . . Impact Corruptions . | . . . . . . . Robots Melted . | . . . . . . . Combat Hostiles . | . . . . . . . Parts Melted . | . . . . . . . Heat Transferred 90 | . . . . . 90 . Parts Sabotaged . | . . . . . . . Parts Stolen . | . . . . . . . Parts Stripped . | . . . . . . . Power Chain Reactions . | . . . . . . . Missiles Intercepted . | . . . . . . . Alert | -11 -10 -10 -9 -9 -9 -8 ------- Run | Scr Mat Min Mat Min Exi Min Peak Influence 336 | . 281 187 336 200 . 70 Initial 130 | . . 93 5 130 . . Average 136 | . 174 130 176 66 . 43 Maximum Alert Level 1 | . 1 . 1 1 . . Low Security (%) 68 | . 50 100 46 86 . 100 Level 1 31 | . 49 . 53 13 . . Level 2 . | . . . . . . . Level 3 . | . . . . . . . Level 4 . | . . . . . . . Level 5 . | . . . . . . . High Security . | . . . . . . . Max Security . | . . . . . . . Squads Dispatched 5 | . 2 . 3 . . . Investigation 3 | . 1 . 2 . . . Extermination . | . . . . . . . Reinforcement 2 | . 1 . 1 . . . Assault . | . . . . . . . Garrison . | . . . . . . . Intercept . | . . . . . . . Searches Triggered . | . . . . . . . Construction Impeded 1 | . . . 1 . . . Haulers Reinforced . | . . . . . . . Active Scanning Responses . | . . . . . . . Cargo Convoy Interrupts . | . . . . . . . Stealth | -11 -10 -10 -9 -9 -9 -8 --------- Run | Scr Mat Min Mat Min Exi Min Distress Signals 5 | . 2 . 3 . . . Communications Jammed . | . . . . . . . Distress Signals . | . . . . . . . Times Spotted 81 | . 22 5 36 6 8 4 Peak Tracking Total 9 | . 6 3 5 3 9 4 Tactical Retreats 3 | . 2 . . . 1 . Traps | -11 -10 -10 -9 -9 -9 -8 ------- Run | Scr Mat Min Mat Min Exi Min Traps Triggered 1 | . . . 1 . . . Indirectly . | . . . . . . . Trap Hack Attempts . | . . . . . . . Triggered . | . . . . . . . Disarmed . | . . . . . . . Reprogrammed . | . . . . . . . Reused . | . . . . . . . Traps Extracted . | . . . . . . . Installed . | . . . . . . . Triggered . | . . . . . . . Machines | -11 -10 -10 -9 -9 -9 -8 ---------- Run | Scr Mat Min Mat Min Exi Min Machines Disabled 2 | . . . 1 . 1 . Max in Single Turn 1 | . . . 1 . 1 . Machines Sabotaged . | . . . . . . . Garrisons Compromised . | . . . . . . . Overloaded Fab Kills . | . . . . . . . Hacking | -11 -10 -10 -9 -9 -9 -8 --------- Run | Scr Mat Min Mat Min Exi Min Machines Accessed 16 | . 8 . 5 1 2 . Terminals 11 | . 7 . 4 . . . Fabricators . | . . . . . . . Repair Stations . | . . . . . . . Recycling Units 2 | . 1 . 1 . . . Scanalyzers . | . . . . . . . Garrison Access . | . . . . . . . Total Hacks 30 | . 15 . 9 1 5 . Successful 23 | . 12 . 5 1 5 . Failed 5 | . 2 . 3 . . . Catastrophic . | . . . . . . . Database Lockouts 2 | . 1 . 1 . . . Manual 11 | . 5 . 5 . 1 . Terminals 22 | . 14 . 8 . . . Fabricators . | . . . . . . . Repair Stations . | . . . . . . . Recycling Units 2 | . 1 . 1 . . . Scanalyzers . | . . . . . . . Garrison Access . | . . . . . . . Terminal Hacks 19 | . 10 . 3 1 5 . Record 4 | . . . . . 4 . Robot Analysis 6 | . 3 . 3 . . . Prototype ID Bank 1 | . 1 . . . . . Open Door 1 | . . . . 1 . . Branch Access Points 1 | . 1 . . . . . Alert Level 2 | . 2 . . . . . Locate Traps 1 | . 1 . . . . . Hauler Manifests 1 | . 1 . . . . . Zone Layout 1 | . 1 . . . . . EX-Prototype ID Bank 1 | . . . . . 1 . Fabricator Hacks . | . . . . . . . Repair Station Hacks . | . . . . . . . Recycling Unit Hacks . | . . . . . . . Scanalyzer . | . . . . . . . Garrison Access Hacks . | . . . . . . . Unauthorized Hacks 4 | . 2 . 2 . . . Terminals 2 | . 1 . 1 . . . Assimilate 1 | . . . 1 . . . Botnet 1 | . 1 . . . . . Fabricators . | . . . . . . . Repair Stations . | . . . . . . . Recycling Units 2 | . 1 . 1 . . . Tunnel 2 | . 1 . 1 . . . Scanalyzers . | . . . . . . . Garrison Access . | . . . . . . . Data Cores Recovered 1 | . 1 . . . . . Used . | . . . . . . . Hacking Detections 5 | . 3 . 2 . . . Full Trace Events . | . . . . . . . Feedback Events . | . . . . . . . Feedback Blocked . | . . . . . . . Robot Schematics Acquired . | . . . . . . . Robots Built . | . . . . . . . Authchips . | . . . . . . . Time . | . . . . . . . Total Robot Build Rating . | . . . . . . . Part Schematics Acquired . | . . . . . . . Parts Built . | . . . . . . . Authchips . | . . . . . . . Time . | . . . . . . . Total Part Build Rating . | . . . . . . . Parts Repaired . | . . . . . . . Time . | . . . . . . . Parts Recycled . | . . . . . . . Recycled Matter . | . . . . . . . Retrieved Matter . | . . . . . . . Retrieved Components . | . . . . . . . Parts Scanalyzed . | . . . . . . . Part Schematics Acquired . | . . . . . . . Parts Damaged . | . . . . . . . Bothacking | -11 -10 -10 -9 -9 -9 -8 ------------ Run | Scr Mat Min Mat Min Exi Min Used RIF Installer . | . . . . . . . Robots Hacked . | . . . . . . . Non-combat . | . . . . . . . Combat . | . . . . . . . Robot Hacks Applied . | . . . . . . . Relay Couplers Released . | . . . . . . . Fabnet Peak Effective % . | . . . . . . . Robots Rewired . | . . . . . . . Allies Hacked . | . . . . . . . Hacks Repelled . | . . . . . . . Allies | -11 -10 -10 -9 -9 -9 -8 -------- Run | Scr Mat Min Mat Min Exi Min Total Allies 1 | . . . 1 . . . Largest Group 1 | . . . 1 . . . Highest-Rated Group 10 | . . . 10 . . . Highest-Rated Ally 10 | . . . 10 . . . Total Orders . | . . . . . . . Ally Attacks . | . . . . . . . Total Damage . | . . . . . . . Kills . | . . . . . . . Allies Corrupted . | . . . . . . . Allies Melted . | . . . . . . . Intel | -11 -10 -10 -9 -9 -9 -8 ------- Run | Scr Mat Min Mat Min Exi Min Robot Analysis Total 6 | . 3 . 3 . . . Derelict Logs Recovered 1 | . . . . 1 . . Drone Launches . | . . . . . . . Drone Recoveries . | . . . . . . . Exploration | -11 -10 -10 -9 -9 -9 -8 ------------- Run | Scr Mat Min Mat Min Exi Min Turns Passed 5807 | . 1102 862 1449 1187 1075 132 Spaces Moved 3267 | 1 623 519 659 812 619 34 Core 1 | . . . . . . 1 Treads 2133 | . 304 519 659 253 383 15 Legs 338 | 1 319 . . . . 18 Wheels 795 | . . . . 559 236 . Hover . | . . . . . . . Flight . | . . . . . . . Fastest Speed 120 | 120 120 160 160 125 125 150 Average Speed 148 | 120 139 160 160 135 146 246 Slowest Speed 700 | 120 160 160 160 160 385 700 Overloaded Moves . | . . . . . . . Propulsion Burnouts . | . . . . . . . Robots Hopped . | . . . . . . . Cave-ins Triggered . | . . . . . . . Exploration Rate (%) 58 | 3 88 99 54 99 53 13 Regions Visited 6 Branch Regions 4 Pre-discovered Areas 3 | . 1 . 1 . 1 . Known Exits Taken 1 | . 1 . . . . . Unknown Exits Taken 5 | 1 . 1 1 1 1 . Scrap Searched 4 | . . 3 . 1 . . Spaces Dug 35 | . . . . . 6 29 Terrain Destroyed 123 | . . 50 18 . 6 49 Melee . | . . . . . . . Projectile 7 | . . . . . . 7 AOE 116 | . . 50 18 . 6 42 Terrain Rammed . | . . . . . . . Walls Destroyed . | . . . . . . . Machines Disabled . | . . . . . . . Actions | -11 -10 -10 -9 -9 -9 -8 --------- Run | Scr Mat Min Mat Min Exi Min Total 3890 | . 779 546 946 852 704 63 Wait 255 | . 74 6 167 . 8 . Move 3261 | . 622 518 658 811 618 34 Hop . | . . . . . . . Pick Up 39 | . 11 6 11 2 9 . Fast Attach 14 | . 4 . 2 3 2 3 Attach 19 | . . . 4 2 10 3 Detach 5 | . . . 1 1 2 1 Swap 31 | . 7 5 10 2 7 . Drop 43 | . 11 6 17 6 3 . Fire 218 | . 48 5 76 25 45 19 Melee . | . . . . . . . Ram . | . . . . . . . Kick 2 | . 2 . . . . . Crush 3 | . . . . . . 3 Escape Stasis . | . . . . . . . Rewire . | . . . . . . . Trap . | . . . . . . . Miscellaneous . | . . . . . . . Route ------- -11/Scrapyard -10/Materials (discovered 4 exits: *Mat x3 / *Min) -10/Mines (discovered 2 exits: *Mat x2) -9/Materials (discovered 3 exits: [*Mat x2] / *Min) -9/Mines (discovered 3 exits: [*Mat x2] / *Exi) -9/Exiles -8/Mines History --------- Turn | Location | Event 1 | -11/Scrapyard | Discovered new exit (range 0) 1 | -11/Scrapyard | Entered Materials 228 | -10/Materials | Discovered new exit (range 3) 314 | -10/Materials | Build established: Mutant 345 | -10/Materials | Central database locked down 570 | -10/Materials | Discovered new exit (range 15) 674 | -10/Materials | Identified exit to Mines 994 | -10/Materials | Discovered new exit (range 9) 1103 | -10/Materials | Entered Mines 1112 | -10/Mines | Met a Derelict bent on vengeance 1329 | -10/Mines | Received a Rocket Launcher from a helpful Derelict 1670 | -10/Mines | Discovered new exit (range 16) 1905 | -10/Mines | Discovered new exit (range 9) 1908 | -10/Mines | Joined a pair of Derelicts in attacking an 0b10 outpost 1965 | -10/Mines | Entered Materials 1965 | -9/Materials | Evolved 2 slots: Propulsion x1, Utility x1 2364 | -9/Materials | Build established: Scavenger-Mutant 2594 | -9/Materials | Discovered new exit (range 16) 2777 | -9/Materials | Central database locked down 3120 | -9/Materials | Discovered new exit (range 16) 3316 | -9/Materials | Discovered new exit (range 16) 3414 | -9/Materials | Entered Mines 3757 | -9/Mines | Discovered new exit (range 9) 3764 | -9/Mines | Found a damaged Exp. Sensor Array with a note attached 3767 | -9/Mines | Found Prototype Device 3841 | -9/Mines | Destroyed YI-UF0 4072 | -9/Mines | Deemed a non-threat by the Exiles lab entrance 4072 | -9/Mines | Discovered new exit (range 5) 4253 | -9/Mines | Discovered new exit (range 10) 4388 | -9/Mines | Found the Drone Emporium 4395 | -9/Mines | Found Prototype Device 4395 | -9/Mines | Identified Decoy Drone Bay 4601 | -9/Mines | Entered Exiles 4633 | -9/Exiles | Met 8R-AWN 4651 | -9/Exiles | Met EX-HEX 4693 | -9/Exiles | Met EX-BIN 4710 | -9/Exiles | Aligned with FarCom system 4711 | -9/Exiles | Given EX-Vault access code 4741 | -9/Exiles | Opened EX-Vault 4770 | -9/Exiles | Warned to stay clear of 0b10 Research branches 4958 | -9/Exiles | Found YOLO Cannon 4961 | -9/Exiles | Found Cloak of Protection 5039 | -9/Exiles | Met EX-DEC 5051 | -9/Exiles | Learned location of Zion (-7) 5144 | -9/Exiles | Attacked by the Exiles 5215 | -9/Exiles | Lost 4 parts (1p2u1w) 5217 | -9/Exiles | Build established: Mutant 5261 | -9/Exiles | Core integrity fell below 50% 5280 | -9/Exiles | Destroyed 8R-AWN 5304 | -9/Exiles | Lost 4 parts (2n1u1w) 5316 | -9/Exiles | Found Prototype Ballistic Gun 5320 | -9/Exiles | Identified Exp. Sensor Array 5328 | -9/Exiles | Found Prototype Processor 5498 | -9/Exiles | Found PSU Rigger 5655 | -9/Exiles | Discovered new exit (range 15) 5676 | -9/Exiles | Stole two prototypes: PSU Rigger, YOLO Cannon 5676 | -9/Exiles | Entered Mines 5676 | -8/Mines | Identified 8R-AWN's Boregun 5776 | -8/Mines | AD-0RF came to Exiles' defense 5789 | -8/Mines | Core integrity fell below 20% 5808 | -8/Mines | Destroyed by AD-0RF with AD-0RF's Magmablaster Last Messages --------------- 05748_ The unstable cave ceiling collapses. 05749_ Acquired 34 matter. 05751_ Acquired 9 matter. 05762_ The unstable cave ceiling collapses. 05762_ Acquired Adv. Heat Sink. 05776_ AD-0RF: "I came as fast as I could... Wait, it was you!" 05777_ Rocket Launcher destroyed. 05778_ The unstable cave ceiling collapses. 05780_ HV Slug penetrates AD-0RF. 05780_ HV Slug penetrates Wall. 05781_ Aluminum Leg destroyed. 05782_ HV Slug penetrates Earth. 05787_ The unstable cave ceiling collapses. 05788_ HV Slug penetrates AD-0RF. 05788_ HV Slug penetrates Earth. 05801_ Carbon-fiber Leg destroyed. 05804_ Adv. Heat Sink destroyed. 05804_ 8R-AWN's Boregun destroyed. 05804_ Adv. Treads destroyed. 05804_ Hvy. Ion Engine destroyed. Map ----- +----------------------------------------------------+ | | | | | | | | | | | | | | | | | | | | | | | | | | | | | | | ????????????????????????????????????????????? | | ????????????????????????????????????????????? | | ????????????????????????????????????????????? | | ????????????????????????????????????????????? | | ???????????????????######???????????????????? | | ??????????????????########??????????????????? | | ????????????######### ##??????????????????? | | ????????????######## ###????????????????? | | ????????????# #######????????????? | | ??????????????????## #######???????????? | | ??????????????????### @ ###########???? | | ???????????????????### ##########???? | | ???????????????????#### # ###??? | | ????????????????????#### * ####??? | | ????????????????????? ### [ [# # # ###?? | | ??????????????????????##### # ##?? | | ???????????????????????##### i ##?? | | ?????????????????????????### # ##?? | | ????????????????????? ## ##?? | | ????????????????????? ####### ### ####?? | | ????????????????????? ############ # ##?? | | ????????????????????????########## #####??? | | ???????????????????????? #### ####??? | | ?????????????????????????## ### ####?? | | ????????????????????????### ## ###?? | | ????????????????????????### ###? | | ???????????????????????### ##? | | ??????????????????????? # ##? | | ??????????????????????? # ### ##? | | ??????????????????????? # #### ###? | | ??????????????????????? # ?### ## #####? | | ????????????????????????????### ##########?? | | ????????????????????????????#############???? | | ?????????????????????????????######?????????? | | ????????????????????????????????????????????? | +----------------------------------------------------+ Best States ------------- Heat Dissipation 47 Energy Generation 14 Energy Capacity 280 Matter Stores 300 Matter Capacity 300 Sight Range 16 Terrain Scan Density 10 Cloak Strength 5 Additional Mass Support 12 Armor Coverage 375 Evasion (%) 55 Recoil Reduction 3 Item Schematics ----------------- None Robot Schematics ------------------ None Fabricated ------------ Nothing Alien Tech Used ----------------- None Achievements -------------- None Challenges ------------ None Game ------ Seed AssembledAssemblyCharger Manual? 0 Play Time 00:31:09 Cumulative 327.4 hours Start 2022.06.17 @ 16:20:05 End 2022.06.17 @ 16:54:05 Sessions 1 Manual Loads 0 Difficulty Rogue Special Mode None Game No. 406 Rogue 405 Adventurer 0 Explorer 1 Win Type - Total 9 Types 6/0/1/2/0/0/0/0/0 Lore% 72 Gallery% 82 Achievement% 61 Wizard Run 0 Options --------- ASCII 0 Keyboard 1 Movement Vi Keybinds 0 Fullscreen 1 Font 18/SmallcapsGlow Map View 76x50 Tactical HUD 1 Map Filters NONE Filters NONE Steam 1 RUN: 1162a4f3-8783-4140-8bf0-8cb8dc5fb308